bitfinex/quotes_BTCUSD_20260308
["timestamp","ask_amount","ask_price","bid_price","bid_amount"]
[1772938386342,0.07486827,66981.0,66969.0,0.00012024]
[1772938386520,0.14714372,66980.0,66970.0,0.00152]
[1772938386725,0.07486814,66981.0,66970.0,0.00152]
[1772938386897,0.14714372,66978.0,66951.0,0.05212628]
[1772938387094,0.14726394,66978.0,66952.0,0.00152]
[1772938387396,0.14726394,66978.0,66950.0,0.07528224]
[1772938387397,0.14726394,66978.0,66953.0,0.00152]
[1772938387625,0.14726394,66978.0,66950.0,0.0006]
[1772938387796,0.14726394,66978.0,66951.0,0.00152]
[1772938387996,0.14726394,66978.0,66952.0,0.05212628]
[1772938388952,0.14714372,66976.0,66954.0,0.05212628]
[1772938389152,0.14714372,66976.0,66965.0,0.0002]
[1772938389303,0.14714372,66976.0,66963.0,0.00152]
[1772938389705,0.14714372,66976.0,66962.0,0.00152]
[1772938391185,0.07465472,66975.0,66962.0,0.00152]
[1772938391465,0.14714372,66974.0,66962.0,0.00152]
[1772938392022,0.14714372,66974.0,66963.0,0.05212628]
[1772938392977,0.14714372,66974.0,66964.0,0.00152]
[1772938393179,0.07465695,66973.0,66964.0,0.00152]
[1772938393383,0.14714372,66972.0,66964.0,0.00152]
[1772938393830,0.14714372,66972.0,66952.0,0.1268064]
[1772938393831,0.14714372,66972.0,66952.0,0.05212628]
[1772938393963,0.14714372,66972.0,66953.0,0.00152]
[1772938394166,0.14714372,66972.0,66952.0,0.05212628]
[1772938394367,0.14714372,66972.0,66954.0,0.00152]
[1772938394616,0.14714372,66972.0,66955.0,0.00152]
[1772938395177,0.07465918,66971.0,66954.0,0.00152]
[1772938395359,0.07465918,66971.0,66951.0,0.0002]
[1772938395360,0.14714372,66970.0,66955.0,0.00152]
[1772938395560,0.14714372,66970.0,66954.0,0.00152]
[1772938396716,0.14714372,66970.0,66954.0,0.05347837]
[1772938397284,0.07466141,66969.0,66954.0,0.05347837]
[1772938397498,0.07466141,66969.0,66955.0,0.05212628]
[1772938398089,0.22180513,66969.0,66955.0,0.05212628]
[1772938398614,0.14714372,66968.0,66954.0,0.00135209]
[1772938398842,0.14714372,66968.0,66954.0,0.00155209]
[1772938399045,0.14714372,66968.0,66951.0,0.0002]
[1772938399249,0.14714372,66968.0,66952.0,0.00152]
[1772938399374,0.14714372,66966.0,66952.0,0.00152]
[1772938400279,0.14714372,66966.0,66951.0,0.05232628]
[1772938400280,0.14714372,66966.0,66953.0,0.00152]
[1772938400943,0.14714372,66966.0,66951.0,0.05232628]
[1772938401161,0.14714372,66966.0,66952.0,0.00152]
[1772938401372,0.07466587,66965.0,66943.0,0.0002]
[1772938401531,0.11776009,66959.0,66936.0,0.00152]
[1772938401733,0.10403551,66962.0,66936.0,0.00152]
[1772938401734,0.14714372,66956.0,66936.0,0.00152]
[1772938402347,0.14714372,66954.0,66936.0,0.00152]
[1772938403451,0.14714372,66952.0,66936.0,0.00152]
[1772938404183,0.14714372,66952.0,66936.0,0.07621788]
[1772938404364,0.14714372,66952.0,66937.0,0.02436257]
[1772938404565,0.07467925,66953.0,66937.0,0.02436257]
[1772938405028,0.07467925,66954.0,66939.0,0.02436257]
[1772938405314,0.14714372,66953.0,66940.0,0.00152]
[1772938405471,0.07468036,66952.0,66942.0,0.02436257]
[1772938406609,0.07468013,66953.0,66942.0,0.02436257]
[1772938407368,0.07467053,66961.0,66942.0,0.02436257]
[1772938407570,0.14714372,66960.0,66942.0,0.02436257]
[1772938407912,0.14714372,66960.0,66943.0,0.0746904]
[1772938408073,0.14699372,66960.0,66943.0,0.0746904]
[1772938408272,0.14699372,66960.0,66944.0,0.02436257]
[1772938408472,0.14717451,66963.0,66944.0,0.02436257]
[1772938408826,0.14714372,66962.0,66944.0,0.02436257]
[1772938409024,0.14714372,66962.0,66945.0,0.00152]
[1772938409318,0.14714372,66962.0,66945.0,0.02588257]
[1772938409620,0.07467033,66961.0,66945.0,0.02588257]
[1772938409796,0.07467033,66961.0,66947.0,0.00942517]
[1772938410463,0.14714372,66960.0,66947.0,0.00942517]
[1772938411790,0.07467256,66959.0,66948.0,0.0990474]
[1772938411987,0.01892563,66969.0,66948.0,0.07468483]
[1772938412250,0.01892563,66969.0,66949.0,0.02436257]
[1772938412251,0.00035215,66961.0,66949.0,0.02436257]
[1772938413240,0.15150994,66960.0,66939.0,0.07469477]
[1772938413415,0.01964298,66957.0,66937.0,0.07489698]
[1772938413614,0.01964298,66955.0,66938.0,0.00152]
[1772938413937,0.15150994,66952.0,66939.0,0.07621487]
[1772938414517,0.07467925,66953.0,66940.0,0.02436257]
[1772938414905,0.07467925,66953.0,66940.0,0.02436147]
[1772938415614,0.07467925,66953.0,66949.0,0.0002]
[1772938415810,0.07467925,66954.0,66949.0,0.0002]
[1772938416433,0.07467479,66957.0,66944.0,0.02436257]
[1772938416635,0.07467158,66960.0,66945.0,0.02436257]
[1772938416856,0.07467158,66960.0,66946.0,0.02436257]
[1772938417475,0.00035215,66961.0,66946.0,0.02436257]
[1772938417678,0.07502271,66961.0,66942.0,0.0002]
[1772938417902,0.07466311,66968.0,66947.0,0.02436257]
[1772938417903,0.07466475,66966.0,66947.0,0.02436257]
[1772938418112,0.07466456,66967.0,66945.0,0.07468817]
[1772938418243,0.07466456,66967.0,66949.0,0.02436257]
[1772938418444,0.15150994,66966.0,66949.0,0.02436257]
[1772938419457,0.07466456,66967.0,66950.0,0.00152]
[1772938419685,0.07466456,66967.0,66952.0,0.0259165]
[1772938419899,0.07466364,66968.0,66954.0,0.0259165]
[1772938420039,0.07466364,66968.0,66956.0,0.0259165]
[1772938422379,0.07466364,66968.0,66957.0,0.10059129]
[1772938423138,0.00022001,66969.0,66957.0,0.07467479]
[1772938423343,0.00022001,66969.0,66959.0,0.0259165]
[1772938423564,0.00062096,66969.0,66961.0,0.0259165]
[1772938423847,0.00062096,66969.0,66963.0,0.0259165]
[1772938424973,0.07528247,66969.0,66962.0,0.07618851]
[1772938425173,0.00062096,66969.0,66962.0,0.07618851]
[1772938425512,0.00047096,66969.0,66962.0,0.07618851]
[1772938426610,0.07465691,66974.0,66963.0,0.0259165]
[1772938426822,0.07464418,66985.0,66964.0,0.1438746]
[1772938426974,0.07464418,66985.0,66968.0,0.1438746]
[1772938427179,0.07464418,66985.0,66970.0,0.0259165]
[1772938427374,0.07486627,66983.0,66970.0,0.0259165]
[1772938427659,0.00022001,66983.0,66970.0,0.0259165]
[1772938427850,0.00022001,66983.0,66971.0,0.0274365]
[1772938427979,0.07486711,66982.0,66971.0,0.0274365]
[1772938428178,0.00022001,66982.0,66971.0,0.0274365]
[1772938428379,0.00022001,66988.0,66972.0,0.1438746]
[1772938428581,0.07486165,66987.0,66975.0,0.0259165]
[1772938429026,0.00022001,66987.0,66975.0,0.0259165]
[1772938429890,0.00022001,66987.0,66975.0,0.1697911]
[1772938430100,0.07486162,66987.0,66976.0,0.0259165]
[1772938430299,0.05393862,66987.0,66976.0,0.0259165]
[1772938430506,0.15150994,66986.0,66969.0,0.07466116]
[1772938430702,0.15150994,66986.0,66957.0,0.1438746]
[1772938430703,0.0267245,66982.0,66970.0,0.00152]
[1772938430926,0.17823444,66981.0,66970.0,0.00152]
[1772938433193,0.07464914,66980.0,66970.0,0.07618028]
[1772938433343,0.07464914,66980.0,66970.0,0.07466028]
[1772938433552,0.07464914,66980.0,66971.0,0.00152]
[1772938433938,0.00022001,66981.0,66971.0,0.0274365]
[1772938434836,0.07486061,66988.0,66973.0,0.0259165]
[1772938435037,0.15172995,66995.0,66974.0,0.0259165]
[1772938435295,0.07485399,66994.0,66978.0,0.01098619]
[1772938435496,0.00022001,66994.0,66978.0,0.01098619]
[1772938435897,0.00022001,66994.0,66978.0,0.1438746]
[1772938436098,0.00022001,66994.0,66979.0,0.0259165]
[1772938436311,0.00022001,66994.0,66980.0,0.0259165]
[1772938436515,0.00022001,66994.0,66982.0,0.0259165]
[1772938437067,0.00022001,66994.0,66984.0,0.0259165]
[1772938437240,0.0012,67000.0,66987.0,0.0259165]
[1772938437387,0.0012,67000.0,66988.0,0.00152]
[1772938437388,0.17823444,66999.0,66988.0,0.00152]
[1772938437590,0.07582711,67000.0,66988.0,0.00152]
[1772938437809,0.07462797,66999.0,66988.0,0.00135214]
[1772938438018,0.0012,67000.0,66989.0,0.0259165]
[1772938438218,0.0012,67000.0,66989.0,0.02574865]
[1772938438416,0.00132027,67000.0,66989.0,0.02574865]
[1772938439047,0.07594765,67000.0,66989.0,0.02574865]
[1772938439254,0.00132027,67000.0,66989.0,0.02574865]
[1772938439412,0.07462046,67006.0,66989.0,0.02574865]
[1772938439413,0.2261233,67013.0,66992.0,0.0259165]
[1772938439612,0.2261233,67013.0,66993.0,0.0259165]
[1772938439815,0.15150994,67012.0,66993.0,0.0259165]
[1772938440158,0.07461336,67013.0,66994.0,0.00152]
[1772938440159,0.15150994,67010.0,66994.0,0.00152]
[1772938440561,0.0267245,67007.0,66995.0,0.00152]
[1772938440755,0.15150994,67004.0,66995.0,0.00152]
[1772938441157,0.00022001,67000.0,66995.0,0.00152]
[1772938441372,0.22612511,67011.0,66996.0,0.07463132]
[1772938441512,0.22612511,67011.0,66997.0,0.0259165]
[1772938441711,0.00022001,67007.0,66997.0,0.1438746]
[1772938441917,0.07460662,67019.0,66998.0,0.0259165]
[1772938442138,0.07460662,67019.0,67000.0,0.1438746]
[1772938442139,7.001e-05,67014.0,67000.0,0.1438746]
[1772938442338,7.001e-05,67014.0,66996.0,0.07463132]
[1772938442339,7.001e-05,67014.0,67001.0,0.03175042]
[1772938442520,7.001e-05,67014.0,67003.0,0.03175042]
[1772938442750,7.001e-05,67014.0,67003.0,0.15058036]
[1772938442951,7.001e-05,67014.0,67004.0,0.03175042]
[1772938443352,0.00029481,67014.0,67005.0,0.07462129]
[1772938443597,0.00029481,67014.0,67005.0,0.10637171]
[1772938443798,0.00029481,67014.0,67005.0,0.07462129]
[1772938444025,0.00029481,67014.0,67006.0,0.03175042]
[1772938444153,0.00029481,67014.0,67007.0,0.00152]
[1772938445024,0.14999617,67013.0,67003.0,0.07462309]
[1772938445150,0.14999617,67011.0,67004.0,0.00152]
[1772938445350,0.18202698,67011.0,67004.0,0.00152]
[1772938445802,0.18202698,67011.0,67004.0,0.0761422]
[1772938446004,0.15022097,67011.0,67004.0,0.0761422]
[1772938446604,0.14999617,67008.0,66999.0,0.07462736]
[1772938446802,0.07484001,67011.0,66992.0,0.00012027]
[1772938446803,0.14999617,67004.0,66992.0,0.00012027]
[1772938447004,0.03180601,67001.0,66993.0,0.00152]
[1772938447357,0.18180218,66998.0,66993.0,0.00152]
[1772938447691,0.14999617,66995.0,66986.0,0.00152]
[1772938447905,0.18180218,66993.0,66987.0,0.00152]
[1772938448235,0.18180218,66993.0,66986.0,0.00152]
[1772938448386,0.00012018,66995.0,66979.0,0.07464983]
[1772938448387,0.00012018,66995.0,66987.0,0.00152]
[1772938449633,0.00012018,66995.0,66988.0,0.07464023]
[1772938449811,0.00012018,66995.0,66989.0,0.03253919]
[1772938450398,0.00012018,66995.0,66988.0,0.07464023]
[1772938450603,0.07484977,67002.0,66989.0,0.03253919]
[1772938451510,0.07483508,67011.0,66990.0,0.03253919]
[1772938451808,0.07483508,67011.0,66994.0,0.03253919]
[1772938452025,0.07483508,67011.0,66994.0,0.03237136]
[1772938452555,0.00022001,67011.0,66995.0,0.03253919]
[1772938452709,0.00022001,67011.0,66996.0,0.15058036]
[1772938452908,0.00022001,67011.0,66998.0,0.15058036]
[1772938453126,0.00022001,67011.0,67000.0,0.03253919]
[1772938453511,0.00022001,67018.0,67000.0,0.03253919]
[1772938453708,0.00022001,67018.0,67002.0,0.03253919]
[1772938454687,0.00022001,67018.0,67002.0,0.18311955]
[1772938454986,0.07482708,67018.0,67003.0,0.03253919]
[1772938455751,0.07482708,67018.0,67004.0,0.07462241]
[1772938455995,0.07482708,67018.0,67005.0,0.03253919]
[1772938456163,0.00022001,67018.0,67005.0,0.03253919]
[1772938456772,0.14999617,67013.0,67004.0,0.07462241]
[1772938457291,0.14999617,67011.0,67004.0,0.00152]
[1772938457493,0.14999617,67009.0,66997.0,0.07462929]
[1772938457694,0.18292785,67009.0,66997.0,0.07462929]
[1772938457895,0.18292785,67009.0,66999.0,0.07462797]
[1772938458095,0.22461153,67011.0,66999.0,0.07462797]
[1772938458835,0.22446153,67011.0,66999.0,0.07462797]
[1772938459372,7.001e-05,67014.0,67000.0,0.15058036]
[1772938459589,7.001e-05,67014.0,67002.0,0.15058036]
[1772938459949,7.001e-05,67014.0,67005.0,0.03253919]
[1772938460494,0.00022001,67018.0,67005.0,0.03253919]
[1772938461727,0.14999617,67017.0,67004.0,0.07462241]
[1772938462481,0.14999617,67017.0,67004.0,0.1071616]
[1772938462983,0.14999617,67015.0,67005.0,0.00152]
[1772938463168,0.07460818,67017.0,67004.0,0.07462241]
[1772938463169,0.14999617,67013.0,67004.0,0.07462241]
[1772938463364,0.14999617,67011.0,67005.0,0.00152]
[1772938463994,0.14999617,67011.0,67006.0,0.07462018]
[1772938464363,0.14999617,67011.0,67007.0,0.00152]
[1772938465161,0.07461139,67014.0,67007.0,0.00152]
[1772938465371,0.22460435,67017.0,67007.0,0.00152]
[1772938465997,0.22460435,67017.0,67008.0,0.07461795]
[1772938467016,0.07460818,67017.0,67007.0,0.07597062]
[1772938467242,0.18292785,67016.0,67007.0,0.07597062]
[1772938467449,0.14999617,67016.0,67007.0,0.07597062]
[1772938467726,0.18292785,67014.0,67007.0,0.07597074]
[1772938468688,0.14999617,67014.0,67007.0,0.07597074]
[1772938469697,0.22460435,67017.0,67007.0,0.07597074]
[1772938470524,0.14999617,67016.0,67007.0,0.07597074]
[1772938472013,0.00022001,67014.0,67007.0,0.07597074]
[1772938472421,0.00022001,67018.0,67008.0,0.03253919]
[1772938472819,0.07482694,67018.0,67008.0,0.03253919]
[1772938473393,0.0003601,67022.0,67008.0,0.03253919]
[1772938473665,0.15653744,67021.0,67008.0,0.03253919]
[1772938474121,0.15653744,67021.0,67009.0,0.07461684]
[1772938474292,0.23114117,67021.0,67009.0,0.07461684]
[1772938474703,0.21022229,67021.0,67009.0,0.10715603]
[1772938475703,0.15653744,67020.0,67009.0,0.10715603]
[1772938475847,0.03329178,67022.0,67009.0,0.10715603]
[1772938475848,0.0003601,67022.0,67009.0,0.07461684]
[1772938476051,0.0003601,67022.0,67011.0,0.07461461]
[1772938476293,0.0003601,67022.0,67012.0,0.03253919]
[1772938477228,0.00048037,67022.0,67012.0,0.03253919]
[1772938477807,0.03293168,67020.0,67005.0,0.07462074]
[1772938478016,0.03293168,67018.0,67006.0,0.00152]
[1772938478346,0.15653744,67013.0,67007.0,0.00152]
[1772938478535,0.07460811,67017.0,67007.0,0.00152]
[1772938478697,0.23114555,67017.0,67007.0,0.00152]
[1772938479301,0.23114555,67017.0,66988.0,0.0002]
[1772938479302,0.07460811,67017.0,66988.0,0.0002]
[1772938479515,0.03421174,67012.0,66994.0,0.00152]
[1772938479804,0.15653744,67007.0,66992.0,0.07483555]
[1772938480005,0.03421174,67004.0,66993.0,0.00152]
[1772938480195,0.07462463,67002.0,66993.0,0.00152]
[1772938480423,0.19074918,67000.0,66994.0,0.00152]
[1772938480854,0.19074918,67000.0,66994.0,0.00172]
[1772938481255,0.19074918,67000.0,66994.0,0.00272]
[1772938481475,0.19074918,67000.0,66994.0,0.00172]
[1772938482058,0.03421174,67000.0,66994.0,0.00172]
[1772938482261,0.10883887,67000.0,66994.0,0.00172]
[1772938482408,0.07462713,67000.0,66994.0,0.07635309]
[1772938483445,0.07462713,67000.0,66994.0,0.00172]
[1772938483642,0.07462713,67000.0,66989.0,0.0002]
[1772938483643,0.15653744,66999.0,66988.0,0.0002]
[1772938483790,0.03421174,66996.0,66989.0,0.00152]
[1772938483991,0.15653744,66993.0,66989.0,0.00152]
[1772938484208,0.03421174,66992.0,66989.0,0.00152]
[1772938484414,0.03421174,66992.0,66986.0,0.07464182]
[1772938484639,0.03421174,66992.0,66990.0,0.00152]
[1772938484841,0.03421174,66992.0,66986.0,0.07464182]
[1772938485042,0.03421174,66992.0,66978.0,0.10949242]
[1772938485043,0.07463689,66991.0,66978.0,0.07465068]
[1772938485243,0.07463689,66991.0,66962.0,0.20212444]
[1772938485244,0.03421174,66987.0,66979.0,0.00152]
[1772938485458,0.15653744,66984.0,66970.0,0.0002]
[1772938485677,0.03421174,66979.0,66972.0,0.00152]
[1772938485838,0.07463689,66991.0,66963.0,0.07486751]
[1772938485839,0.15653744,66976.0,66963.0,0.07486751]
[1772938486043,0.15653744,66972.0,66964.0,0.00152]
[1772938486261,0.03421174,66971.0,66965.0,0.07466587]
[1772938486461,0.07450824,66972.0,66965.0,0.07466587]
[1772938487282,0.07465598,66974.0,66965.0,0.07478609]
[1772938487489,0.07464246,66986.0,66967.0,0.14659258]
[1772938487732,0.07464246,66986.0,66970.0,0.03499385]
[1772938488232,0.1088542,66986.0,66970.0,0.03499385]
[1772938488392,0.1088542,66986.0,66975.0,0.0002]
[1772938488597,0.15653744,66983.0,66976.0,0.00152]
[1772938488797,0.19074918,66982.0,66976.0,0.00152]
[1772938489230,0.16984897,66982.0,66976.0,0.00152]
[1772938489436,0.07464803,66981.0,66976.0,0.00152]
[1772938490287,0.07464803,66981.0,66977.0,0.00152]
[1772938490491,0.07464429,66985.0,66977.0,0.00152]
[1772938490741,0.07463554,66993.0,66977.0,0.00152]
[1772938490742,0.15693744,67000.0,66977.0,0.00152]
[1772938490936,0.07540822,66997.0,66979.0,0.03522322]
[1772938491084,0.07540822,66997.0,66977.0,0.14811258]
[1772938491085,0.03421174,66995.0,66977.0,0.00152]
[1772938491283,0.19074918,66993.0,66977.0,0.00152]
[1772938491779,0.07463577,66992.0,66978.0,0.07465137]
[1772938491926,0.03421174,66988.0,66979.0,0.00152]
[1772938492125,0.19074918,66987.0,66979.0,0.00152]
[1772938493424,0.03421174,66987.0,66979.0,0.00152]
[1772938493628,0.0007774,66990.0,66979.0,0.00152]
[1772938493849,0.0007774,66990.0,66979.0,0.0041909]
[1772938494009,0.07463911,66989.0,66980.0,0.07464914]
[1772938495356,0.07463911,66989.0,66979.0,0.00152]
[1772938495496,0.15653744,66986.0,66977.0,0.0746522]
[1772938495837,0.03421174,66986.0,66980.0,0.00152]
[1772938496039,0.0007774,66988.0,66980.0,0.00152]
[1772938496390,0.0007774,66989.0,66980.0,0.00152]
[1772938496896,0.03421174,66993.0,66980.0,0.00152]
[1772938496897,0.11757242,67018.0,66981.0,0.00077749]
[1772938497099,0.07460945,67016.0,66986.0,0.14659258]
[1772938497321,0.07460945,67016.0,66990.0,0.074638]
[1772938497522,0.07460945,67016.0,66994.0,0.03522322]
[1772938497722,0.07460945,67016.0,66990.0,0.074638]
[1772938497723,0.07460945,67016.0,66997.0,0.03522322]
[1772938497922,0.15653744,67015.0,66997.0,0.03522322]
[1772938498129,0.07460904,67016.0,66999.0,0.03522322]
[1772938498318,0.00012027,67016.0,67000.0,0.14659258]
[1772938498535,0.00012027,67016.0,67001.0,0.03522322]
[1772938498743,0.00012027,67016.0,67003.0,0.03522322]
[1772938499570,0.00012027,67016.0,67004.0,0.07462241]
[1772938500179,0.00012027,67016.0,66998.0,0.14659258]
[1772938500180,0.15653744,67013.0,66998.0,0.07462836]
[1772938500368,0.00012027,67016.0,66982.0,0.07464582]
[1772938500369,0.15653744,67009.0,66982.0,0.07464582]
[1772938500549,0.03421174,67006.0,66983.0,0.00235218]
[1772938500755,0.03421174,67004.0,66984.0,0.03522322]
[1772938500963,0.19074918,67004.0,66985.0,0.00083215]
[1772938501355,0.19074918,67004.0,66986.0,0.03522322]
[1772938501563,0.2653726,67004.0,66988.0,0.07464023]
[1772938501761,0.2653726,67004.0,66989.0,0.00083286]
[1772938501986,0.2653726,67004.0,66988.0,0.07547309]
[1772938502770,0.07461171,67014.0,66989.0,0.14340219]
[1772938503132,0.07461171,67014.0,66988.0,0.07547309]
[1772938503133,0.0002534,67014.0,66995.0,0.03458485]
[1772938503307,0.0002534,67014.0,66999.0,0.03458485]
[1772938503507,0.0002534,67014.0,67002.0,0.14340219]
[1772938503832,0.0002283,67017.0,67007.0,0.03458485]
[1772938504032,0.00026836,67017.0,67005.0,0.07462129]
[1772938504230,0.00026836,67017.0,67006.0,0.00152]
[1772938504531,0.00026836,67017.0,67007.0,0.00152]
[1772938504906,0.13070507,67017.0,67005.0,0.07462129]
[1772938505109,0.03676484,67019.0,67006.0,0.00152]
[1772938505309,0.03676484,67019.0,67006.0,0.00164027]
[1772938505509,0.15134996,67021.0,67006.0,0.00164027]
[1772938506087,0.00022001,67021.0,67007.0,0.07461906]
[1772938508162,0.15112995,67020.0,67007.0,0.07461906]
[1772938508342,0.03603372,67017.0,67008.0,0.00152]
[1772938508536,0.15112995,67014.0,67008.0,0.00152]
[1772938508987,0.15112995,67014.0,67009.0,0.00152]
[1772938509190,0.15112995,67012.0,67010.0,0.00152]
[1772938509387,0.03603372,67011.0,67010.0,0.00152]
[1772938509896,0.03603372,67013.0,67010.0,0.00152]
[1772938510045,0.18716367,67013.0,67010.0,0.00152]
[1772938510451,0.18716367,67018.0,67010.0,0.00152]
[1772938510716,0.03603372,67017.0,67010.0,0.00152]
[1772938510897,0.18716367,67017.0,67010.0,0.00152]
[1772938511217,0.18716367,67017.0,67004.0,0.07462131]
[1772938511218,0.15112995,67015.0,67002.0,0.07462397]
[1772938511384,0.03603372,67012.0,66983.0,0.17914882]
[1772938511707,0.15112995,67009.0,66996.0,0.00152]
[1772938511882,0.15112995,67007.0,66997.0,0.00049232]
[1772938512085,0.00012018,67012.0,66997.0,0.00049232]
[1772938512304,0.15112995,67011.0,66997.0,0.00049232]
[1772938512608,0.22574567,67010.0,66997.0,0.07512161]
[1772938513003,0.07461572,67010.0,66997.0,0.07512161]
[1772938513385,0.15112995,67009.0,66997.0,0.07512161]
[1772938514372,0.07461795,67008.0,66998.0,0.00050335]
[1772938514986,0.00012018,67012.0,66999.0,0.07462797]
[1772938515187,0.00012018,67012.0,67000.0,0.03625333]
[1772938516205,0.00012018,67012.0,67000.0,0.03725333]
[1772938516404,0.00012018,67012.0,67001.0,0.07462575]
[1772938516606,0.00012018,67012.0,67002.0,0.00051845]
[1772938516945,0.15112995,67011.0,67003.0,0.00152]
[1772938518537,0.00012018,67012.0,67003.0,0.00152]
[1772938518926,0.15112995,67011.0,67003.0,0.00152]
[1772938519508,0.15112995,67011.0,67004.0,0.00152]
[1772938520756,0.22574567,67010.0,67004.0,0.00152]
[1772938521741,0.07461572,67010.0,66999.0,0.07462731]
[1772938521958,0.15112995,67009.0,67000.0,0.00152]
[1772938522165,0.15112995,67009.0,66995.0,0.0748324]
[1772938522166,0.15112995,67009.0,66996.0,0.00306601]
[1772938522346,0.15112995,67007.0,66997.0,0.00152]
[1772938522544,0.15112995,67007.0,66998.0,0.00152]
[1772938522545,0.15685201,67007.0,66998.0,0.00152]
[1772938522746,0.22575013,67006.0,66998.0,0.00152]
[1772938523065,0.22575013,67006.0,66990.0,0.11038369]
[1772938523066,0.07462018,67006.0,66999.0,0.00152]
[1772938524571,0.15112995,67005.0,66999.0,0.00152]
[1772938524727,0.07462241,67004.0,66999.0,0.00152]
[1772938524935,0.07461936,67008.0,67000.0,0.07462686]
[1772938525167,0.07461936,67008.0,66999.0,0.00152]
[1772938525370,0.001,67006.0,66999.0,0.00152]
[1772938525569,0.07461936,67008.0,67000.0,0.0002]
[1772938525978,0.15112995,67005.0,66999.0,0.00152]
[1772938526158,0.15654311,67005.0,66999.0,0.00152]
[1772938526340,0.07461936,67008.0,67000.0,0.03574663]
[1772938526542,0.07461936,67008.0,66999.0,0.00152]
[1772938527186,0.0746177,67009.0,66999.0,0.00152]
[1772938527692,0.0746177,67009.0,66999.0,0.03726663]
[1772938530382,0.0746177,67009.0,66999.0,0.00152]
[1772938530560,0.22574765,67009.0,66999.0,0.00152]
[1772938534200,0.22574765,67009.0,66999.0,0.00172]
[1772938534728,0.0746177,67009.0,66999.0,0.00172]
[1772938534904,0.14679289,67008.0,66999.0,0.00152]
[1772938536308,0.07461906,67007.0,66999.0,0.00152]
[1772938536608,0.21697001,67007.0,66996.0,0.07527743]
[1772938536806,0.21697001,67007.0,66997.0,0.00152]
[1772938537029,0.07461906,67007.0,66998.0,0.00065286]
[1772938537246,0.14235095,67006.0,66998.0,0.00152]
[1772938537471,0.14235095,67006.0,66999.0,0.0006551]
[1772938538271,0.07462129,67005.0,66999.0,0.0006551]
[1772938539471,0.14235095,67003.0,66996.0,0.00152]
[1772938539842,0.14235095,67003.0,66993.0,0.07483388]
[1772938540044,0.0006551,67004.0,66994.0,0.00152]
[1772938540250,0.07462352,67003.0,66995.0,0.07463243]
[1772938540540,0.07462352,67003.0,66994.0,0.03594692]
[1772938541539,0.07462352,67003.0,66986.0,0.07507001]
[1772938541784,0.14235095,67000.0,66989.0,0.00152]
[1772938542003,0.00407698,67001.0,66990.0,0.00152]
[1772938542205,0.14235095,67000.0,66990.0,0.00152]
[1772938542406,0.07462797,66999.0,66994.0,0.0002]
[1772938542556,0.14235095,66998.0,66994.0,0.0002]
[1772938542756,0.07462797,66999.0,66994.0,0.0002]
[1772938543667,0.07462797,67000.0,66994.0,0.0002]
[1772938543668,0.07462735,67000.0,66994.0,0.0002]
[1772938547302,0.07462735,67000.0,66988.0,0.0002]
[1772938547303,0.14235095,66997.0,66980.0,0.0002]
[1772938547512,0.00348561,66994.0,66980.0,0.00172]
[1772938547721,0.00348561,66992.0,66980.0,0.00172]
[1772938547854,0.14235095,66991.0,66980.0,0.00172]
[1772938548263,0.0780738,67000.0,66980.0,0.0763685]
[1772938548502,0.0780738,67000.0,66981.0,0.03442692]
[1772938548708,0.14235095,66999.0,66981.0,0.03442692]
[1772938548904,0.14235095,66997.0,66981.0,0.03442692]
[1772938549276,0.07463132,66996.0,66982.0,0.03442692]
[1772938550372,0.14235095,66995.0,66982.0,0.03459712]
[1772938551134,0.07463354,66994.0,66982.0,0.03459712]
[1772938552611,0.07807999,66994.0,66982.0,0.03459712]
[1772938553466,0.07463354,66994.0,66983.0,0.03442692]
[1772938554036,0.00344645,66993.0,66983.0,0.03442692]
[1772938554538,0.00344645,66993.0,66983.0,0.03459712]
[1772938555663,0.07463354,66995.0,66984.0,0.03442692]
[1772938555897,0.07463354,66995.0,66983.0,0.07481551]
[1772938555898,0.07462988,66998.0,66986.0,0.03442692]
[1772938556098,0.07483484,67011.0,66988.0,0.14770277]
[1772938556501,0.07483484,67011.0,66993.0,0.03442692]
[1772938556688,0.00022001,67011.0,66995.0,0.14770277]
[1772938556831,0.03466905,67010.0,66996.0,0.03442692]
[1772938557244,0.00022001,67016.0,66996.0,0.03442692]
[1772938557444,0.00022001,67016.0,67000.0,0.03442692]
[1772938557759,0.00022001,67016.0,67003.0,0.14770277]
[1772938557961,0.00022001,67016.0,67004.0,0.03442692]
[1772938559146,0.00022001,67007.0,67004.0,0.03442692]
[1772938559604,0.00022001,67007.0,67005.0,0.07462129]
[1772938559791,0.00022001,67007.0,67006.0,0.03594692]
[1772938559957,0.00022001,67014.0,67006.0,0.03594692]
[1772938560858,0.00022001,67018.0,67008.0,0.03442692]
[1772938561967,0.00022001,67018.0,67009.0,0.03442692]
[1772938562196,0.00022001,67021.0,67010.0,0.14755107]
[1772938562533,0.00022001,67023.0,67015.0,0.03190161]
[1772938563101,0.0002918,67023.0,67015.0,0.03190161]
[1772938564122,0.1477476,67022.0,67006.0,0.03190161]
[1772938564443,0.1477476,67022.0,67008.0,0.03190161]
[1772938564644,0.0002918,67023.0,67009.0,0.15065369]
[1772938564941,0.0002918,67023.0,67012.0,0.03190161]
[1772938565306,0.00022001,67024.0,67013.0,0.15065369]
[1772938565506,0.00022001,67024.0,67015.0,0.03190161]
[1772938565704,0.00022001,67023.0,67015.0,0.03190161]
[1772938565911,0.00022001,67023.0,67016.0,0.03190161]
[1772938566249,0.00022001,67023.0,67017.0,0.03190161]
[1772938567541,0.00022001,67024.0,67018.0,0.03190161]
[1772938568583,0.00022001,67024.0,67018.0,0.10650797]
[1772938568778,0.00022001,67024.0,67020.0,0.03530706]
[1772938568979,0.00030071,67028.0,67019.0,0.00152]
[1772938569178,0.00030071,67028.0,67020.0,0.03530706]
[1772938571207,0.00030071,67028.0,67013.0,0.0746832]
[1772938571208,0.03193422,67026.0,67013.0,0.0746832]
[1772938571439,0.1477476,67025.0,67013.0,0.0762032]
[1772938571602,0.00030071,67028.0,67014.0,0.03530706]
[1772938571977,0.1477476,67027.0,67014.0,0.03530706]
[1772938572416,0.00030071,67028.0,67016.0,0.03530706]
[1772938573183,0.00030071,67028.0,67018.0,0.03530706]
[1772938574487,0.05396819,67029.0,67018.0,0.03530706]
[1772938575104,0.1477476,67028.0,67015.0,0.07480911]
[1772938575511,0.1477476,67028.0,67015.0,0.11011617]
[1772938575905,0.1477476,67028.0,67015.0,0.07480911]
[1772938576116,0.00022001,67030.0,67017.0,0.03530706]
[1772938576333,0.00022001,67030.0,67018.0,0.15065369]
[1772938576535,0.00022001,67030.0,67021.0,0.03530706]
[1772938577514,0.00022001,67030.0,67023.0,0.03530706]
[1772938578345,0.03252826,67028.0,67015.0,0.07480904]
[1772938578557,0.1477476,67027.0,67015.0,0.1101161]
[1772938578760,0.1477476,67027.0,67015.0,0.07480904]
[1772938578932,0.1477476,67027.0,67016.0,0.03530706]
[1772938579297,0.00022001,67030.0,67015.0,0.07480982]